bitfinex-derivatives/quotes_SOLF0:USTF0_20250528
["timestamp","ask_amount","ask_price","bid_price","bid_amount"]
[1748405739240,4.28705626,174.81,174.78,0.03778232]
[1748405739538,4.28705626,174.81,174.74,32.4263731]
[1748405739539,5.7195,174.76,174.74,32.4263731]
[1748405739739,3.9593,174.8,174.74,32.4263731]
[1748405740538,4.28893958,174.79,174.75,0.03634811]
[1748405740736,4.2463731,174.77,174.75,0.03634811]
[1748405741839,5.7193,174.76,174.75,0.03634811]
[1748405747841,5.7191,174.77,174.75,0.03634811]
[1748405748246,218.04256648,174.79,174.75,0.03634811]
[1748405749845,5.7193,174.76,174.75,0.03634811]
[1748405754753,5.7191,174.77,174.75,0.03634811]
[1748405756449,218.04256648,174.79,174.75,0.03634811]
[1748405756753,218.04256648,174.79,174.75,28.21634811]
[1748405756954,0.04256648,174.79,174.77,5.7189]
[1748405757552,0.04256648,174.79,174.77,115.5989]
[1748405757753,0.04256648,174.79,174.78,5.7186]
[1748405777874,0.04256648,174.79,174.78,9.95707069]
[1748405790989,5.7174,174.82,174.79,5.718]
[1748405791184,5.7174,174.82,174.8,4.23847069]
[1748405797779,5.7174,174.82,174.8,9.95647069]
[1748405799891,5.7177,174.81,174.8,4.23847069]
[1748405801190,5.7177,174.81,174.79,28.20075489]
[1748405801191,5.718,174.8,174.79,0.04075489]
[1748405803387,8.17001214,174.8,174.79,0.04075489]
[1748405803689,5.718,174.8,174.79,0.04075489]
[1748405803882,8.17001214,174.8,174.79,0.04075489]
[1748405804289,5.718,174.8,174.79,0.04075489]
[1748405805289,8.17198162,174.8,174.79,0.04075489]
[1748405805893,5.718,174.8,174.79,0.04075489]
[1748405806992,8.17198162,174.8,174.79,0.04075489]
[1748405807189,10.62596324,174.8,174.79,0.04075489]
[1748405807595,8.17198162,174.8,174.79,0.04075489]
[1748405808397,10.62597568,174.8,174.79,0.04075489]
[1748405808588,8.17198162,174.8,174.79,0.04075489]
[1748405808798,10.62597568,174.8,174.79,0.04075489]
[1748405808986,8.17198162,174.8,174.79,0.04075489]
[1748405809397,10.62596324,174.8,174.79,0.04075489]
[1748405809597,8.17198162,174.8,174.79,0.04075489]
[1748405809800,10.62596323,174.8,174.79,0.04075489]
[1748405809995,8.17198162,174.8,174.79,0.04075489]
[1748405811198,10.62602821,174.8,174.79,0.04075489]
[1748405811397,10.62601939,174.8,174.79,0.04075489]
[1748405811897,8.17198162,174.8,174.79,0.04075489]
[1748405812295,10.62602756,174.8,174.79,0.04075489]
[1748405812489,8.17198162,174.8,174.79,0.04075489]
[1748405812800,10.62603363,174.8,174.79,0.04075489]
[1748405813099,8.17198162,174.8,174.79,0.04075489]
[1748405813495,10.62602167,174.8,174.79,0.04075489]
[1748405813802,8.17198162,174.8,174.79,0.04075489]
[1748405813996,10.62600771,174.8,174.79,0.04075489]
[1748405814201,8.17198162,174.8,174.79,0.04075489]
[1748405814397,10.62600771,174.8,174.79,0.04075489]
[1748405814598,8.17198162,174.8,174.79,0.04075489]
[1748405815101,10.62600924,174.8,174.79,0.04075489]
[1748405815301,8.17198162,174.8,174.79,0.04075489]
[1748405815496,10.62600956,174.8,174.79,0.04075489]
[1748405815700,8.17198162,174.8,174.79,0.04075489]
[1748405816294,10.62599781,174.8,174.79,0.04075489]
[1748405816502,2.45398162,174.8,174.79,0.04075489]
[1748405816799,2.45398162,174.8,174.79,5.75905489]
[1748405824105,2.45398162,174.8,174.79,0.04075489]
[1748405825312,2.45398162,174.8,174.79,5.75905489]
[1748405828012,2.45398162,174.8,174.79,0.04075489]
[1748405828213,2.45398162,174.8,174.79,4.27922558]
[1748405830411,2.45398162,174.8,174.79,9.99752558]
[1748405832214,2.45398162,174.8,174.79,4.27922558]
[1748405835623,2.45398162,174.8,174.79,9.99752558]
[1748405836119,2.45398162,174.8,174.79,4.27922558]
[1748405836721,2.45398162,174.8,174.79,9.99752558]
[1748405837922,2.45398162,174.8,174.79,4.27922558]
[1748405838617,2.45398162,174.8,174.79,9.99752558]
[1748405844427,2.45398162,174.8,174.79,38.11752558]
[1748405845825,2.45398162,174.8,174.79,32.39922558]
[1748405846025,8.17198162,174.8,174.79,28.16075489]
[1748405847028,8.17198162,174.8,174.79,0.04075489]
[1748405848232,10.62269952,174.8,174.79,0.04075489]
[1748405849127,13.07346709,174.8,174.79,0.04075489]
[1748405849332,15.52428585,174.8,174.79,0.04075489]
[1748405849625,17.97512662,174.8,174.79,0.04075489]
[1748405849825,20.42600399,174.8,174.79,0.04075489]
[1748405850029,22.87688136,174.8,174.79,0.04075489]
[1748405850228,20.42600399,174.8,174.79,0.04075489]
[1748405850422,22.87689255,174.8,174.79,0.04075489]
[1748405851127,20.42600399,174.8,174.79,0.04075489]
[1748405851332,21.39736691,174.8,174.73,28.12]
[1748405851525,21.39736691,174.8,174.63,11.4471]
[1748405851526,4.23847069,174.76,174.64,3.7978]
[1748405851731,222.90306082,174.75,174.69,5.7214]
[1748405851931,5.721,174.71,174.69,5.7214]
[1748405852128,220.4516612,174.75,174.68,4.23847069]
[1748405852333,5.76345447,174.73,174.7,5.76499948]
[1748405852633,0.04295447,174.73,174.7,0.04379948]
[1748405853531,5.7209,174.71,174.7,0.04379948]
[1748405859538,10.62463948,174.71,174.7,0.04379948]
[1748405859740,8.17276974,174.71,174.7,0.04379948]
[1748405860042,10.62463948,174.71,174.7,0.04379948]
[1748405860540,13.07650922,174.71,174.7,0.04379948]
[1748405861038,10.62463948,174.71,174.7,0.04379948]
[1748405862335,5.7214,174.7,174.65,142.15847069]
[1748405862535,5.7214,174.7,174.67,5.7222]
[1748405863037,4.90373948,174.71,174.67,4.23847069]
[1748405863338,4.94540909,174.71,174.67,4.27452376]
[1748405865144,10.66630909,174.71,174.68,5.7218]
[1748405866440,10.66630909,174.71,174.67,9.99662376]
[1748405867247,5.7212,174.7,174.67,9.99662376]
[1748405868444,4.94540909,174.71,174.67,0.03605307]
[1748405870644,5.7218,174.69,174.67,0.03605307]
[1748405873245,5.7218,174.69,174.67,5.75825307]
[1748405873751,5.7219,174.68,174.67,0.03605307]
[1748405878851,8.18190773,174.68,174.67,0.03605307]
[1748405879153,5.7219,174.68,174.67,0.03605307]
[1748405880556,8.18190405,174.68,174.67,0.03605307]
[1748405881259,5.7219,174.68,174.67,0.03605307]
[1748405881458,8.18189158,174.68,174.67,0.03605307]
[1748405881658,8.18189526,174.68,174.67,0.03605307]
[1748405882257,5.7219,174.68,174.67,0.03605307]
[1748405884752,5.7214,174.7,174.67,9.99672376]
[1748405885555,5.7218,174.69,174.67,4.27452376]
[1748405886159,5.7218,174.69,174.67,0.03605307]
[1748405886660,5.7219,174.68,174.67,0.03605307]
[1748405890162,8.18260453,174.68,174.67,0.03605307]
[1748405890665,10.64330922,174.68,174.67,0.03605307]
[1748405890862,10.6433217,174.68,174.67,0.03605307]
[1748405891067,8.18260453,174.68,174.67,0.03605307]
[1748405891757,10.64338479,174.68,174.67,0.03605307]
[1748405891960,8.18260453,174.68,174.67,0.03605307]
[1748405892569,10.64342151,174.68,174.67,0.03605307]
[1748405892764,13.10423849,174.68,174.67,0.03605307]
[1748405893166,10.64342151,174.68,174.67,0.03605307]
[1748405893366,15.56504809,174.68,174.67,0.03605307]
[1748405893767,15.56504992,174.68,174.67,0.03605307]
[1748405894072,13.1042348,174.68,174.67,0.03605307]
[1748405895671,15.56504296,174.68,174.67,0.03605307]
[1748405896062,15.56494918,174.68,174.67,0.03605307]
[1748405896773,15.56496165,174.68,174.67,0.03605307]
[1748405897173,9.84306165,174.68,174.67,0.03605307]
[1748405897775,15.56496165,174.68,174.67,0.03605307]
[1748405898171,7.3823348,174.68,174.67,4.27452376]
[1748405898368,4.94540909,174.71,174.67,4.27452376]
[1748405898672,4.94540909,174.71,174.7,4.23847069]
[1748405900877,4.94540909,174.71,174.69,9.95997069]
[1748405901681,4.94540909,174.71,174.7,5.7212]
[1748405902277,4.94540909,174.71,174.7,143.6412]
[1748405905578,4.94540909,174.71,174.7,28.12]
[1748405906277,4.94540909,174.71,174.7,33.8412]
[1748405923991,2.45169813,174.74,174.73,5.7203]
[1748405927990,2.45169813,174.74,174.73,9.96124553]
[1748405941196,2.45137212,174.79,174.73,4.24094553]
[1748405941394,2.45137212,174.79,174.78,4.24094553]
[1748405943002,2.45137212,174.79,174.78,9.95954553]
[1748405943697,12.29719789,174.8,174.78,32.32094553]
[1748405943894,12.29719789,174.8,174.79,5.7183]
[1748405945603,12.29719789,174.8,174.79,7.99104278]
[1748405945802,12.29719789,174.8,174.79,5.7183]
[1748405946002,12.29719789,174.8,174.79,7.99104523]
[1748405946998,12.29719789,174.8,174.79,5.7183]
[1748405947201,12.29719789,174.8,174.79,7.99124276]
[1748405947507,12.29719789,174.8,174.78,28.08]
[1748405947700,12.29719789,174.8,174.79,2.27308476]
[1748405947909,12.29719789,174.8,174.77,0.03856447]
[1748405948206,12.29719789,174.8,174.78,2.27394095]
[1748405948505,12.29719789,174.8,174.75,28.08]
[1748405948699,1.9773,174.79,174.75,28.08]
[1748405949003,1.9773,174.79,174.74,4.24094553]
[1748405949203,5.7193,174.76,174.74,4.24094553]
[1748405949704,5.7192,174.77,174.74,9.96084553]
[1748405949903,5.7192,174.77,174.74,5.7199]
[1748405950399,1.9773,174.79,174.73,5.75793849]
[1748405950601,1.9773,174.79,174.73,0.03783849]
[1748405952706,5.75718978,174.76,174.73,5.75813849]
[1748405953008,5.75718978,174.76,174.73,0.03783849]
[1748405953807,0.03778978,174.76,174.73,0.03783849]
[1748405955101,5.7199,174.74,174.73,0.03783849]
[1748405958606,5.7211,174.71,174.68,28.08]
[1748405959010,5.7211,174.71,174.68,33.8017]
[1748405959512,5.7645027,174.71,174.68,28.12010927]
[1748405960106,0.0434027,174.71,174.69,5.7216]
[1748405960405,0.0434027,174.71,174.68,28.12010927]
[1748405961909,0.0434027,174.71,174.7,5.7213]
[1748405966613,0.0434027,174.71,174.69,5.7215]
[1748405966814,0.0434027,174.71,174.68,28.12010927]
[1748405967518,0.0434027,174.71,174.69,5.7216]
[1748405972119,0.0434027,174.71,174.69,9.96473917]
[1748405972514,0.0434027,174.71,174.7,5.7213]
[1748405974622,0.00556421,174.71,174.7,5.7213]
[1748405974814,218.0,174.76,174.73,5.7202]
[1748405975015,7.6985,174.77,174.73,9.96333917]
[1748405975720,7.74005762,174.77,174.73,9.9995621]
[1748405975924,5.7193,174.76,174.73,9.9995621]
[1748405976523,2.02085762,174.77,174.73,9.9995621]
[1748405977233,5.7193,174.76,174.73,9.9995621]
[1748405978127,7.73995762,174.77,174.74,5.7199]
[1748405978631,2.02085762,174.77,174.73,4.2793621]
[1748405978823,5.7196,174.76,174.73,9.9994621]
[1748405981222,5.7196,174.76,174.74,5.7199]
[1748405981926,0.04155762,174.77,174.75,5.7196]
[1748405982624,0.04155762,174.77,174.76,5.7193]
[1748405982825,0.04155762,174.77,174.74,4.24313917]
[1748405983426,0.04155762,174.77,174.76,5.7193]
[1748405983827,0.04155762,174.77,174.75,5.7194]
[1748405985335,0.04155762,174.77,174.73,0.03622293]
[1748405985923,5.7198,174.75,174.73,0.03622293]
[1748405986832,5.7198,174.75,174.73,5.75642293]
[1748405987131,0.04155762,174.77,174.73,5.75642293]
[1748405987132,5.7194,174.76,174.73,5.75642293]
[1748405988132,5.7196,174.75,174.73,5.75642293]
[1748405989835,5.7196,174.75,174.73,0.03622293]
[1748405990132,5.7199,174.74,174.73,0.03622293]
[1748405991534,5.7197,174.75,174.73,0.03622293]
[1748405991729,0.04155762,174.77,174.73,0.03622293]
[1748405992531,5.7195,174.76,174.73,5.75632293]
[1748405999351,5.7195,174.76,174.74,5.7198]
[1748405999648,5.76065762,174.77,174.74,5.7198]
[1748406000351,5.76065762,174.77,174.75,5.7196]
[1748406000850,5.76065762,174.77,174.74,5.7197]
[1748406001544,5.7193,174.76,174.74,5.7197]
[1748406002449,5.7196,174.75,174.73,0.03622293]
[1748406002653,0.04155762,174.77,174.73,0.03622293]
[1748406003247,5.7199,174.74,174.73,0.03622293]
[1748406005045,0.04155762,174.77,174.73,0.03622293]
[1748406005849,5.7195,174.76,174.73,5.75622293]
[1748406007549,5.76065762,174.77,174.74,5.7198]
[1748406009356,5.7193,174.76,174.73,5.75632293]
[1748406010459,5.76065762,174.77,174.74,5.7199]
[1748406013661,5.76065762,174.77,174.75,5.7195]
[1748406013957,0.04155762,174.77,174.73,0.03622293]
[1748406015063,0.04155762,174.77,174.76,5.7193]
[1748406019964,0.04155762,174.77,174.76,9.95887572]
[1748406021169,0.04155762,174.77,174.76,147.69887572]
[1748406021667,223.7172,174.83,174.79,5.718]
[1748406021864,5.7172,174.83,174.79,5.718]
[1748406022257,6.621765,174.9,174.8,28.06]
[1748406022258,246.06,174.9,174.8,28.06]
[1748406022563,246.06,174.9,174.81,28.06]
[1748406022768,0.04137586,174.87,174.84,0.04038657]
[1748406023468,5.75737586,174.87,174.84,0.04038657]
[1748406024562,5.7161,174.86,174.84,0.04038657]
[1748406024969,0.04137586,174.87,174.84,0.04038657]
[1748406025169,5.75707586,174.87,174.84,0.04038657]
[1748406027365,5.7162,174.86,174.84,0.04038657]
[1748406027665,0.04137586,174.87,174.84,0.04038657]
[1748406028070,5.716,174.86,174.84,0.04038657]
[1748406028464,0.04137586,174.87,174.84,0.04038657]
[1748406028863,5.716,174.86,174.84,0.04038657]
[1748406029071,0.04137586,174.87,174.84,0.04038657]
[1748406029263,5.716,174.86,174.84,0.04038657]
[1748406029673,0.04137586,174.87,174.84,0.04038657]
[1748406031073,0.04137586,174.87,174.85,5.7161]
[1748406034878,5.75707586,174.87,174.85,5.7161]
[1748406035073,5.75707586,174.87,174.84,5.75688657]
[1748406035273,5.75707586,174.87,174.84,0.04038657]
[1748406036476,5.75707586,174.87,174.84,5.75698657]
[1748406037482,0.04137586,174.87,174.84,0.04038657]
[1748406038578,0.04137586,174.87,174.86,5.716]
[1748406039284,0.04137586,174.87,174.85,33.7562]
[1748406040177,0.04137586,174.87,174.85,28.04]
[1748406041184,5.75717586,174.87,174.85,28.04]
[1748406041381,0.04137586,174.87,174.85,28.04]
[1748406041983,5.716,174.86,174.85,28.04]
[1748406045189,5.7163,174.85,174.84,0.04038657]
[1748406053189,5.7162,174.86,174.84,0.04038657]
[1748406053590,0.04137586,174.87,174.84,0.04038657]
[1748406053892,5.7162,174.86,174.84,0.04038657]
[1748406056690,5.7163,174.85,174.84,0.04038657]
[1748406057290,5.7162,174.86,174.84,0.04038657]
[1748406060194,5.75717586,174.87,174.84,5.75698657]
[1748406061896,5.7161,174.86,174.84,0.04038657]
[1748406064897,0.04137586,174.87,174.84,0.04038657]
[1748406064898,5.75717586,174.87,174.84,5.75698657]
[1748406065098,0.04137586,174.87,174.84,4.27648591]
[1748406065294,0.04137586,174.87,174.86,4.23609934]
[1748406065498,0.04137586,174.87,174.86,9.95209934]
[1748406065792,0.04137586,174.87,174.86,37.99209934]
[1748406068098,0.04137586,174.87,174.86,33.756]
[1748406074816,7.586e-05,174.87,174.86,33.756]
[1748406090120,7.586e-05,174.87,174.86,37.98950135]
[1748406099217,7.586e-05,174.87,174.86,33.756]
[1748406099729,7.586e-05,174.87,174.86,28.04]
[1748406101017,7.586e-05,174.87,174.86,33.756]
[1748406106422,7.586e-05,174.87,174.84,0.04038657]
[1748406106628,5.71577586,174.87,174.84,0.04038657]
[1748406107229,7.586e-05,174.87,174.84,0.04038657]
[1748406107835,5.7164,174.85,174.84,0.04038657]
[1748406110437,5.7163,174.86,174.84,0.04038657]
[1748406111129,5.7164,174.85,174.84,0.04038657]
[1748406112134,5.7161,174.86,174.84,0.04038657]
[1748406112532,5.7164,174.85,174.84,0.04038657]
[1748406113135,7.7536,174.85,174.84,0.04038657]
[1748406116944,2.0372,174.85,174.84,0.04038657]
[1748406118347,2.0372,174.85,174.84,5.75708657]
[1748406121447,2.0372,174.85,174.84,0.04038657]
[1748406123552,7.7536,174.85,174.84,0.04038657]
[1748406124047,2.0372,174.85,174.79,5.7182]
[1748406124239,4.23350135,174.83,174.79,5.7182]
[1748406124851,9.95070135,174.83,174.79,5.7182]
[1748406125144,9.98914316,174.83,174.79,5.75958828]
[1748406127452,5.7173,174.82,174.79,5.75958828]
[1748406127656,4.27194316,174.83,174.79,0.04138828]
[1748406128252,5.7176,174.82,174.79,5.75948828]
[1748406130354,9.98914316,174.83,174.8,5.7179]
[1748406131449,5.7174,174.82,174.79,5.75958828]
[1748406132756,9.98914316,174.83,174.79,5.75958828]
[1748406132950,4.27194316,174.83,174.79,5.75958828]
[1748406133450,0.03844181,174.83,174.79,0.04138828]
[1748406133652,0.03844181,174.83,174.8,4.23350135]
[1748406134049,0.03844181,174.83,174.82,5.7173]
[1748406134251,0.03844181,174.83,174.82,9.95080135]
[1748406134643,5.7159,174.87,174.84,5.7166]
[1748406135053,246.04,174.93,174.84,4.23350135]
[1748406135361,5.7149,174.9,174.86,5.7158]
[1748406135655,5.75605142,174.9,174.86,9.99197772]
[1748406135853,0.04115142,174.9,174.86,4.27617772]
[1748406136047,0.04115142,174.9,174.86,0.04267637]
[1748406136048,4.27465277,174.9,174.86,0.04267637]
[1748406136249,1.9708,174.89,174.86,0.04267637]
[1748406136558,5.7157,174.87,174.86,0.04267637]
[1748406137458,9.94920135,174.87,174.86,0.04267637]
[1748406137659,5.7167,174.84,174.83,109.62]
[1748406139261,5.717,174.83,174.82,0.04074789]
[1748406146250,9.95050135,174.83,174.82,0.04074789]
[1748406146858,5.7185,174.79,174.76,5.7193]
[1748406147158,5.7185,174.79,174.77,109.62]
[1748406148265,5.75965716,174.8,174.77,115.3389]
[1748406148558,0.04165716,174.8,174.77,109.62]
[1748406149159,0.04165716,174.8,174.79,5.7183]
[1748406150058,0.04165716,174.8,174.79,33.7583]
[1748406151258,218.0,174.84,174.81,5.7175]
[1748406151464,5.7169,174.84,174.79,28.04]
[1748406151656,5.7169,174.84,174.8,5.7179]
[1748406151856,218.0,174.87,174.8,5.7179]
[1748406152163,0.03779873,174.85,174.82,0.03965707]
[1748406152465,5.7167,174.84,174.82,0.03965707]
[1748406153867,5.717,174.83,174.82,0.03965707]
[1748406165271,5.7185,174.79,174.76,28.04]
[1748406165673,5.7185,174.79,174.76,33.7591]
[1748406165863,5.7189,174.78,174.76,28.04]
[1748406167569,0.0432904,174.79,174.75,0.03948465]
[1748406168678,5.7192,174.77,174.75,0.03948465]
[1748406169781,5.7192,174.77,174.75,5.75908465]
[1748406169978,4.28347914,174.79,174.75,0.03948465]
[1748406170980,10.00197914,174.79,174.76,5.7191]
[1748406171178,4.28347914,174.79,174.76,5.7191]
[1748406171583,10.00197914,174.79,174.76,5.7191]
[1748406171886,5.7617904,174.79,174.76,5.7191]
[1748406174084,5.7617904,174.79,174.77,5.7189]
[1748406175986,0.0432904,174.79,174.78,5.7186]
[1748406176191,0.0432904,174.79,174.75,0.03948465]
[1748406176686,0.0432904,174.79,174.77,5.7187]
[1748406181189,5.7615904,174.79,174.77,5.7187]
[1748406181783,0.0432904,174.79,174.77,5.7187]
[1748406182188,0.0432904,174.79,174.76,5.719]
[1748406182491,5.7617904,174.79,174.76,5.719]
[1748406184095,0.0432904,174.79,174.77,5.7189]
[1748406185195,5.7617904,174.79,174.76,5.7191]
[1748406186291,0.0432904,174.79,174.76,5.7191]
[1748406186594,0.0432904,174.79,174.77,5.7189]
[1748406189997,5.7616904,174.79,174.77,5.7189]
[1748406191504,0.0432904,174.79,174.77,5.7189]
[1748406192798,5.7615904,174.79,174.76,5.7192]
[1748406193401,0.0432904,174.79,174.78,5.7186]
[1748406196107,0.0432904,174.79,174.77,5.7189]
[1748406200809,0.0432904,174.79,174.78,5.7186]
[1748406203915,0.0432904,174.79,174.77,5.7188]
[1748406205013,5.7616904,174.79,174.76,5.7191]
[1748406205211,5.7616904,174.79,174.75,28.07948465]
[1748406205614,5.7616904,174.79,174.77,5.7189]
[1748406206012,5.7616904,174.79,174.75,28.07948465]
[1748406206213,0.0432904,174.79,174.77,5.7189]
[1748406210019,5.7616904,174.79,174.77,5.7189]
[1748406210618,5.7616904,174.79,174.76,5.7193]
[1748406211120,5.7616904,174.79,174.75,28.07948465]
[1748406211716,5.7616904,174.79,174.76,5.719]
[1748406212522,5.7616904,174.79,174.77,5.7189]
[1748406212815,0.0432904,174.79,174.77,5.7189]
[1748406215324,5.7615904,174.79,174.77,5.7189]
[1748406215527,5.7615904,174.79,174.76,5.7192]
[1748406217229,5.7187,174.78,174.76,5.7192]
[1748406217430,0.0432904,174.79,174.76,5.7192]
[1748406218928,5.7186,174.78,174.76,5.7192]
[1748406222938,5.7186,174.78,174.75,143.41898465]
[1748406223134,5.719,174.77,174.75,143.41898465]
[1748406223530,0.0432904,174.79,174.75,28.07948465]
[1748406223830,4.282601,174.79,174.75,28.07948465]
[1748406224232,4.2393106,174.77,174.75,28.07948465]
[1748406224433,4.2393106,174.77,174.75,0.03948465]
[1748406224634,5.7193,174.76,174.75,0.03948465]
[1748406226731,5.7191,174.77,174.75,5.75898465]
[1748406227141,4.282601,174.79,174.75,0.03948465]
[1748406228343,5.7192,174.77,174.75,0.03948465]
[1748406228544,4.282601,174.79,174.75,0.03948465]
[1748406229033,5.7193,174.76,174.75,0.03948465]
[1748406234342,4.2393106,174.77,174.7,28.04]
[1748406234542,4.2393106,174.74,174.7,28.04]
[1748406234749,4.2393106,174.74,174.68,1.9181]
[1748406235135,5.7208,174.72,174.69,5.7214]
[1748406235439,0.04095551,174.72,174.69,5.75813959]
[1748406236446,5.76165551,174.72,174.7,5.7212]
[1748406237039,5.76165551,174.72,174.69,5.75823959]
[1748406237443,5.7212,174.71,174.69,0.03673959]
[1748406237643,0.04095551,174.72,174.69,0.03673959]
[1748406238039,5.76175551,174.72,174.69,0.03673959]
[1748406238251,0.04095551,174.72,174.69,0.03673959]
[1748406238745,5.76175551,174.72,174.69,5.75813959]
[1748406240342,0.04095551,174.72,174.69,0.03673959]
[1748406240750,4.28026611,174.72,174.69,0.03673959]
[1748406241248,5.7212,174.7,174.69,0.03673959]
[1748406241449,4.2393106,174.7,174.64,28.04]
[1748406242249,5.7224,174.67,174.64,33.7632]
[1748406242456,5.7606551,174.67,174.64,33.7632]
[1748406242749,0.0382551,174.67,174.65,5.7229]
[1748406243352,0.0382551,174.67,174.61,28.04]
[1748406243745,4.2775657,174.67,174.61,28.04]
[1748406243948,4.2775657,174.67,174.63,5.7233]
[1748406243949,5.7228,174.66,174.63,5.7233]
[1748406244154,4.2775657,174.67,174.61,28.04]
[1748406244450,5.7226,174.66,174.63,5.7233]
[1748406245444,5.723,174.65,174.62,5.7238]
[1748406246454,5.723,174.65,174.61,33.7642]
[1748406247955,5.723,174.65,174.62,5.7238]
[1748406248953,5.723,174.65,174.61,33.7641]
[1748406249159,5.7233,174.64,174.61,33.7641]
[1748406249453,5.7233,174.64,174.61,28.04]
[1748406249855,5.7233,174.64,174.6,5.7243]
[1748406250562,4.2393106,174.63,174.58,33.765]
[1748406250854,0.03627931,174.62,174.58,33.765]
[1748406251157,0.03627931,174.62,174.58,28.04]
[1748406251457,5.7244,174.61,174.58,33.7651]
[1748406251856,5.76027931,174.62,174.58,33.7651]
[1748406252259,0.03627931,174.62,174.57,5.7254]
[1748406252462,9.9636106,174.61,174.55,28.06]
[1748406252753,9.9636106,174.61,174.57,5.7253]
[1748406252962,4.2393106,174.61,174.57,5.7253]
[1748406253154,0.03627931,174.62,174.55,28.06]
[1748406253457,4.27558991,174.62,174.58,5.725]
[1748406254355,5.7244,174.61,174.58,5.725]
[1748406254556,4.27558991,174.62,174.57,5.7254]
[1748406255159,5.7243,174.61,174.57,5.7254]
[1748406255657,5.7246,174.6,174.57,5.7254]
[1748406259564,5.7249,174.59,174.56,5.7257]
[1748406259753,5.7249,174.59,174.55,28.06]
[1748406260156,5.7249,174.59,174.56,5.7257]
[1748406261655,5.7249,174.59,174.57,5.7255]
[1748406262164,5.7252,174.58,174.56,5.7256]
[1748406262370,5.7252,174.58,174.55,28.06]
[1748406262564,4.27746801,174.58,174.55,28.06]
[1748406262760,5.7257,174.57,174.55,28.06]
[1748406263155,4.2393106,174.56,174.52,28.52]
[1748406263358,4.2393106,174.56,174.52,34.2471]
[1748406263863,5.7265,174.55,174.52,34.2471]
[1748406264567,5.7265,174.54,174.52,28.52]
[1748406264764,4.2393106,174.54,174.49,635.3592]
[1748406264965,0.03874599,174.53,174.49,141.0192]
[1748406265869,5.76554599,174.53,174.49,141.0192]
[1748406266071,0.03874599,174.53,174.49,141.0192]
[1748406266369,0.03874599,174.53,174.51,5.7273]
[1748406266770,0.03874599,174.53,174.49,141.0192]
[1748406266968,0.03874599,174.53,174.52,5.7271]
[1748406267466,0.03874599,174.53,174.5,5.7277]
[1748406267774,4.27805659,174.53,174.5,5.7277]
[1748406268173,5.76564599,174.53,174.49,28.52]
[1748406268668,5.76564599,174.53,174.5,5.7277]
[1748406270372,0.03874599,174.53,174.49,28.52]
[1748406270973,5.76564599,174.53,174.5,5.7275]
[1748406271869,5.7272,174.52,174.49,34.248]
[1748406272873,5.7272,174.52,174.5,5.7278]
[1748406273076,5.76564599,174.53,174.5,5.7278]
[1748406273275,0.03874599,174.53,174.5,5.7278]
[1748406274372,0.03874599,174.53,174.51,5.7275]
[1748406275176,5.76574599,174.53,174.51,5.7275]
[1748406277082,0.03874599,174.53,174.51,5.7275]
[1748406278479,5.76554599,174.53,174.51,5.7275]
[1748406278978,0.03874599,174.53,174.51,5.7275]
[1748406281078,0.03874599,174.53,174.5,5.7277]
[1748406281480,4.27805659,174.53,174.49,28.52]
[1748406281881,4.27805659,174.53,174.49,34.248]
[1748406282282,5.7271,174.52,174.49,34.248]
[1748406283684,10.00505659,174.53,174.5,5.7277]
[1748406283880,4.27805659,174.53,174.49,28.52]
[1748406284280,5.7272,174.52,174.49,34.2479]
[1748406285591,10.00495659,174.53,174.5,5.7278]
[1748406285793,0.03874599,174.53,174.49,28.52]
[1748406286284,5.7272,174.52,174.49,28.52]
[1748406286485,5.7272,174.52,174.47,4.2393106]
[1748406286790,5.7272,174.52,174.49,5.728]
[1748406287090,5.7276,174.51,174.47,4.2393106]
[1748406287590,5.728,174.5,174.46,30.4777]
[1748406287793,4.2393106,174.52,174.46,30.4777]
[1748406287993,4.2393106,174.52,174.48,5.7284]
[1748406288489,5.7277,174.51,174.48,5.7284]
[1748406289194,0.03874599,174.53,174.48,5.7284]
[1748406289393,4.2393106,174.52,174.48,5.7284]
[1748406290091,5.7277,174.51,174.48,5.7284]
[1748406291283,5.7273,174.52,174.49,5.728]
[1748406291692,4.27805659,174.53,174.49,5.728]
[1748406292090,5.7274,174.52,174.49,5.728]
[1748406293289,5.7274,174.52,174.5,5.7278]
[1748406293795,5.7274,174.52,174.47,4.2393106]
[1748406293991,5.7274,174.52,174.49,5.7279]
[1748406297292,5.7275,174.51,174.49,5.7279]
[1748406297797,5.7275,174.51,174.48,5.7284]